[Event "ISR-chT U14 2018"]
[Site "Nir HaEmek"]
[Date "2018.08.13"]
[Round "3"]
[White "Zholti, Alon"]
[Black "Gov, Guy"]
[Result "0-1"]
[ECO "E32"]
[WhiteElo "1976"]
[BlackElo "1834"]
[Annotator "NA RC"]
[PlyCount "132"]
[EventDate "2018.08.12"]
[EventType "team-tourn"]
[EventCountry "ISR"]
[SourceTitle "playchess.com"]
[Source "ChessBase"]
[SourceQuality "1"]
[TimeControl "3060+10"]

1. d4 {[%emt 0:00:51]} Nf6 {[%emt 0:00:54]} 2. c4 {[%emt 0:00:02]} e6 {[%emt 0:00:02]} 3. Nc3 {[%emt 0:00:02]} Bb4 {[%emt 0:00:05]} 4. Qc2 {[%emt 0:00:03]} O-O {[%emt 0:00:14]} 5. e4 {[%emt 0:00:02] LiveBook: 1028 Games} d5 {[%emt 0:00:11]} 6. e5 {[%emt 0:00:01]} Ne4 {[%emt 0:00:06]} 7. Bd3 {[%emt 0:00:03]} c5 {[%emt 0:02:58]} 8. Nf3 {[%emt 0:00:53] E32: Nimzo-Indian: Classical (4 Qc2): 4...0-0} cxd4 {[%emt 0:18:31]} 9. Nxd4 {[%emt 0:00:07]} Nd7 {[%emt 0:00:48]} 10. Bf4 {[%emt 0:00:07]} Ndc5 {[%emt 0:00:18]} (10... Qh4 11. g3 Qh5 12. h4 Nxe5 13. Be2 Ng4 14. Bxg4 Qxg4 15. f3 Qh5 {1-0 (36) Vallejo Pons,F (2707)-So,W (2780) Leon 2018}) 11. O-O {[%emt 0:01:20]} Nxd3 {[%emt 0:01:12]} 12. Qxd3 {[%emt 0:03:44]} Bxc3 {[%emt 0:00:01]} 13. bxc3 {[%emt 0:00:09]} b6 {[%emt 0:00:22]} 14. cxd5 {[%emt 0:00:58]} Qxd5 {[%emt 0:00:25]} 15. c4 {[%emt 0:03:56]} Nc5 {[%emt 0:03:50]} 16. Qc3 $146 {[%emt 0:09:24]} Qe4 {[%emt 0:00:21]} 17. Bg3 {[%emt 0:02:49]} Ba6 {[%emt 0:03:15]} 18. Rfd1 {[%emt 0:03:37]} Rfc8 {[%emt 0:08:06]} 19. f3 {[%emt 0:02:18]} Qb7 {[%emt 0:01:56]} 20. Qb4 {[%emt 0:01:57]} Rc7 $11 {[%emt 0:00:50]} 21. Rd2 {[%emt 0:05:47]} Rac8 {[%emt 0:02:25]} 22. Rad1 {[%emt 0:01:13]} Qb8 {[%emt 0:02:32]} 23. Nb5 {[%emt 0:08:42]} Bxb5 {[%emt 0:00:01]} 24. cxb5 {[%emt 0:00:54]} h6 {[%emt 0:02:34]} 25. Bh4 {[%emt 0:02:10]} Nb7 {[%emt 0:01:17]} 26. Qg4 {[%emt 0:01:14]} Rc4 {[%emt 0:01:11]} 27. Qg3 {[%emt 0:01:12]} Kh7 {[%emt 0:00:10]} 28. Rd7 {[%emt 0:01:01]} Rc1 {[%emt 0:00:02]} 29. Qe1 {[%emt 0:00:21]} Rxd1 {[%emt 0:00:36]} 30. Qxd1 {[%emt 0:00:07]} Rc7 {[%emt 0:00:11]} 31. Qd3+ {[%emt 0:00:23]} g6 {[%emt 0:00:31]} 32. Qd4 {[%emt 0:00:40]} Qc8 {[%emt 0:00:12]} 33. Rxc7 Qxc7 {[%emt 0:00:00]} 34. Qd2 {[%emt 0:00:18]} Qc5+ {[%emt 0:00:16]} 35. Bf2 {[%emt 0:00:11]} Qxb5 {[%emt 0:00:01]} 36. Bd4 {[%emt 0:00:06]} Qd5 {[%emt 0:00:16]} 37. Kf2 {[%emt 0:00:15]} Na5 {[%emt 0:00:05]} 38. Qb2 {[%emt 0:00:10]} Nc6 {[%emt 0:00:12]} 39. Bc3 {[%emt 0:00:06]} Qc5+ {[%emt 0:00:00]} 40. Kg3 {[%emt 0:00:06]} Ne7 {[%emt 0:00:20]} 41. Bb4 {[%emt 0:00:15]} Nf5+ {[%emt 0:00:05]} 42. Kh3 {[%emt 0:00:01]} Qc4 {[%emt 0:00:09]} 43. Be1 {[%emt 0:00:21]} Qf4 {[%emt 0:00:19]} 44. Qe2 {[%emt 0:00:10]} Qg5 {[%emt 0:00:09]} 45. g4 {[%emt 0:00:05]} Nd4 {[%emt 0:00:18]} 46. Qe4 {[%emt 0:00:13]} Qd8 {[%emt 0:00:10]} 47. Qd3 {[%emt 0:00:11]} Qd5 {[%emt 0:00:05]} 48. Kg2 {[%emt 0:00:09]} Qxa2+ {[%emt 0:00:03]} 49. Bf2 {[%emt 0:00:07]} Nc6 {[%emt 0:00:21]} 50. Qd6 {[%emt 0:00:13]} Qd5 {[%emt 0:00:03]} 51. Qc7 {[%emt 0:00:07]} Nxe5 {[%emt 0:00:05]} 52. Qxa7 {[%emt 0:00:15]} Qxf3+ {[%emt 0:00:04]} 53. Kg1 {[%emt 0:00:24]} Qxg4+ {[%emt 0:00:24]} 54. Kh1 {[%emt 0:00:00]} Qe4+ {[%emt 0:00:12]} 55. Kg1 {[%emt 0:00:00]} Nf3+ {[%emt 0:00:03]} 56. Kg2 {[%emt 0:00:08]} Ng5+ {[%emt 0:00:07]} 57. Kf1 {[%emt 0:00:11]} b5 {[%emt 0:00:07]} 58. h4 {[%emt 0:00:04]} Qh1+ {[%emt 0:00:08]} 59. Ke2 {[%emt 0:00:02]} Qf3+ {[%emt 0:00:02]} 60. Ke1 {[%emt 0:00:11]} Ne4 {[%emt 0:00:01]} 61. Bd4 {[%emt 0:00:12]} Qg3+ {[%emt 0:00:40]} 62. Ke2 {[%emt 0:00:16]} Qg2+ {[%emt 0:00:11]} 63. Kd3 {[%emt 0:00:11]} Nd6 {[%emt 0:00:06]} 64. Qb8 {[%emt 0:00:20]} Qe4+ {[%emt 0:00:01]} 65. Kc3 {[%emt 0:00:00]} e5 {[%emt 0:00:01]} 66. Qxd6 {[%emt 0:00:21]} Qxd4+ {[%emt 0:00:49]} 0-1

[Event "ISR-chT U14 2018"]
[Site "Nir HaEmek"]
[Date "2018.08.13"]
[Round "3"]
[White "Verny, David"]
[Black "Pelech, Roee"]
[Result "1/2-1/2"]
[ECO "B40"]
[WhiteElo "1946"]
[BlackElo "1769"]
[Annotator "NA RC"]
[PlyCount "39"]
[EventDate "2018.08.12"]
[EventType "team-tourn"]
[EventCountry "ISR"]
[SourceTitle "playchess.com"]
[Source "ChessBase"]
[SourceQuality "1"]
[TimeControl "3060+10"]

1. e4 {[%emt 0:00:51]} c5 {[%emt 0:00:54]} 2. Nf3 {[%emt 0:00:05]} e6 {[%emt 0:00:05]} 3. b3 {[%emt 0:00:03]} b6 {[%emt 0:00:10]} 4. Bb2 {[%emt 0:00:08]} Bb7 {[%emt 0:00:04]} 5. d3 {[%emt 0:00:09]} Nc6 {[%emt 0:00:13]} 6. Nbd2 {[%emt 0:00:11]} a6 {[%emt 0:00:10]} 7. g3 {[%emt 0:00:10]} d5 {[%emt 0:00:37]} 8. a4 {[%emt 0:01:07]} Nf6 {[%emt 0:00:39]} 9. Bg2 {[%emt 0:00:07]} Be7 {[%emt 0:00:06]} 10. O-O {[%emt 0:00:08]} O-O {[%emt 0:00:55]} 11. Re1 {[%emt 0:04:40]} Qc7 {[%emt 0:03:08]} 12. exd5 {[%emt 0:03:20]} Nxd5 {[%emt 0:02:39]} 13. Nc4 {[%emt 0:00:41]} Bf6 {[%emt 0:04:33]} 14. Bxf6 {[%emt 0:00:25]} Nxf6 {[%emt 0:00:02]} 15. Qd2 {[%emt 0:08:23]} Rad8 {[%emt 0:02:25]} 16. Nfe5 {[%emt 0:03:16]} Nxe5 {[%emt 0:03:19]} 17. Nxe5 {[%emt 0:00:31]} Bxg2 {[%emt 0:00:22]} 18. Kxg2 {[%emt 0:00:08]} Rd5 {[%emt 0:02:39]} 19. Qe2 {[%emt 0:00:40]} Rfd8 {[%emt 0:02:50]} 20. Kg1 {[%emt 0:03:18]} 1/2-1/2

[Event "ISR-chT U14 2018"]
[Site "Nir HaEmek"]
[Date "2018.08.13"]
[Round "3"]
[White "Levitan, Ronit"]
[Black "Cohen Revivo, Shoham"]
[Result "*"]
[ECO "C56"]
[WhiteElo "1933"]
[BlackElo "2285"]
[Annotator "NA RC"]
[PlyCount "20"]
[EventDate "2018.08.12"]
[EventType "team-tourn"]
[EventCountry "ISR"]
[SourceTitle "playchess.com"]
[Source "ChessBase"]
[SourceQuality "1"]
[TimeControl "3060+10"]

1. e4 {[%emt 0:00:52]} e5 {[%emt 0:01:12]} 2. Nf3 {[%emt 0:00:01]} Nc6 {[%emt 0:00:08]} 3. d4 {[%emt 0:00:02]} exd4 {[%emt 0:00:18]} 4. Bc4 {[%emt 0:00:02]} Nf6 {[%emt 0:00:32]} 5. Ng5 {[%emt 0:00:08]} d5 {[%emt 0:00:21]} 6. exd5 {[%emt 0:00:11]} Qe7+ {[%emt 0:00:55]} 7. Kd2 {[%emt 0:19:06]} Qb4+ {[%emt 0:02:08]} 8. c3 {[%emt 0:00:24]} Qxc4 {[%emt 0:46:46]} 9. dxc6 {[%emt 0:00:03]} dxc3+ {[%emt 0:00:37]} 10. Nxc3 {[%emt 0:00:20]} Bg4 {[%emt 0:45:51]} *

[Event "ISR-chT U14 2018"]
[Site "Nir HaEmek"]
[Date "2018.08.13"]
[Round "3"]
[White "Leib, Daniel"]
[Black "Mizrahi, Ido"]
[Result "0-1"]
[ECO "B13"]
[WhiteElo "1808"]
[BlackElo "1943"]
[Annotator "NA RC"]
[PlyCount "58"]
[EventDate "2018.08.12"]
[EventType "team-tourn"]
[EventCountry "ISR"]
[SourceTitle "playchess.com"]
[Source "ChessBase"]
[SourceQuality "1"]
[TimeControl "3060+10"]

1. e4 {[%emt 0:00:54]} c6 {[%emt 0:02:05]} 2. d4 {[%emt 0:00:12]} d5 {[%emt 0:00:02]} 3. exd5 {[%emt 0:00:24]} cxd5 {[%emt 0:00:02]} 4. Nf3 {[%emt 0:00:17]} Nc6 {[%emt 0:00:50]} 5. Bd3 {[%emt 0:02:29]} Nf6 {[%emt 0:00:54]} 6. O-O {[%emt 0:00:04]} Bg4 {[%emt 0:00:23]} 7. c3 {[%emt 0:00:01]} e6 {[%emt 0:00:08]} 8. Re1 {[%emt 0:01:12]} Bd6 {[%emt 0:01:26] B13: Caro-Kann: Exchange Variation and Panov-Botvinnik Attack} (8... Be7 9. Nbd2 O-O 10. Nf1 Bh5 11. Ng3 Bg6 12. Bg5 Rb8 13. h4 b5 14. a3 a5 15. Bxg6 hxg6 16. Ne5 Nxe5 17. dxe5 {0-1 (96) Petr,M (2397)-Haba,P (2514) Ceska Trebova 2006}) 9. Bg5 {[%emt 0:00:41]} h6 {[%emt 0:00:31]} 10. Bh4 {[%emt 0:01:08]} Qb6 $146 {[%emt 0:14:05]} ({Predecessor:} 10... g5 11. Bg3 h5 12. Be5 Bxe5 13. dxe5 Nd7 14. Nbd2 Ndxe5 15. Rxe5 Nxe5 16. Qa4+ {0-1 (47) Plese,J (1929)-Trtanj,Z (1996) Rijeka/Pula 2009}) 11. b3 {[%emt 0:10:56]} O-O-O {[%emt 0:04:49]} 12. Nbd2 {[%emt 0:01:18]} g5 {[%emt 0:00:42]} 13. Bg3 {[%emt 0:00:05]} Bxg3 {[%emt 0:00:09]} 14. hxg3 {[%emt 0:01:01]} h5 {[%emt 0:00:49]} 15. Qc2 {[%emt 0:01:13]} Rdg8 {[%emt 0:00:34]} 16. Ne5 {[%emt 0:01:39]} Nxe5 {[%emt 0:11:06]} 17. dxe5 {[%emt 0:01:15]} h4 {[%emt 0:03:03]} 18. exf6 {[%emt 0:02:29]} hxg3 {[%emt 0:00:01]} 19. Re3 {[%emt 0:03:47]} Rh6 {[%emt 0:01:46]} 20. Nf1 {[%emt 0:00:09]} Rgh8 $1 {[%emt 0:00:52]} 21. Nxg3 $19 {[%emt 0:00:29]} (21. fxg3 $15 Rh1+ 22. Kf2) 21... Qc7 {[%emt 0:00:39]} 22. Rf3 {[%emt 0:18:26]} Bxf3 {[%emt 0:04:14]} 23. gxf3 {[%emt 0:00:15]} Rh1+ {[%emt 0:00:52]} 24. Nxh1 {[%emt 0:00:07]} Qh2+ {[%emt 0:00:01]} 25. Kf1 {[%emt 0:00:00]} Qxh1+ {[%emt 0:00:02]} 26. Ke2 {[%emt 0:00:01]} Qxa1 {[%emt 0:00:02]} 27. Ke3 {[%emt 0:02:24]} Qe1+ {[%emt 0:01:20]} 28. Kd4 {[%emt 0:00:22]} Rh4+ {[%emt 0:00:12]} 29. Kc5 {[%emt 0:00:05]} Qe5 {[%emt 0:00:08] Kd4 [%clk 0:00:00]} 0-1

[Event "ISR-chT U14 2018"]
[Site "Nir HaEmek"]
[Date "2018.08.13"]
[Round "3"]
[White "Tsirilman, Guy"]
[Black "Rotem Furshpan, Nir"]
[Result "1-0"]
[ECO "A05"]
[WhiteElo "1753"]
[BlackElo "1767"]
[Annotator "NA RC"]
[PlyCount "100"]
[EventDate "2018.08.12"]
[EventType "team-tourn"]
[EventCountry "ISR"]
[SourceTitle "playchess.com"]
[Source "ChessBase"]
[SourceQuality "1"]
[TimeControl "3060+10"]

1. Nf3 {[%emt 0:00:59]} Nf6 {[%emt 0:00:58]} 2. g3 {[%emt 0:00:07]} g6 {[%emt 0:00:10]} 3. Bg2 {[%emt 0:00:16]} Bg7 {[%emt 0:00:13]} 4. O-O {[%emt 0:00:26]} O-O {[%emt 0:00:14]} 5. d3 {[%emt 0:00:41]} d6 {[%emt 0:01:06]} 6. e4 {[%emt 0:00:24]} c5 {[%emt 0:01:15]} 7. Nbd2 {[%emt 0:00:43]} Nc6 {[%emt 0:00:32]} 8. Ne1 {[%emt 0:00:31]} b5 {[%emt 0:01:16]} 9. e5 {[%emt 0:01:58]} Bg4 {[%emt 0:00:20]} 10. f3 {[%emt 0:00:31]} Nxe5 {[%emt 0:00:52]} 11. fxg4 {[%emt 0:00:21]} Rc8 {[%emt 0:00:47]} 12. Nef3 {[%emt 0:01:00]} Nfxg4 {[%emt 0:02:19]} 13. Qe2 {[%emt 0:01:58]} Nc6 {[%emt 0:02:43]} 14. Ne4 {[%emt 0:02:48]} d5 {[%emt 0:07:13]} 15. Nf2 {[%emt 0:03:47]} Nxf2 {[%emt 0:02:27]} 16. Qxf2 {[%emt 0:02:06]} Qd6 {[%emt 0:03:47]} 17. c3 {[%emt 0:01:11]} e5 {[%emt 0:01:37]} 18. Be3 {[%emt 0:00:43]} Ne7 {[%emt 0:03:23]} 19. d4 {[%emt 0:02:23]} cxd4 {[%emt 0:02:06]} 20. cxd4 {[%emt 0:00:15]} e4 {[%emt 0:01:51]} 21. Bf4 {[%emt 0:02:41]} Qb4 {[%emt 0:07:31]} 22. Ne5 {[%emt 0:01:32]} Nf5 {[%emt 0:06:49]} 23. Rfd1 {[%emt 0:01:26]} Nd6 {[%emt 0:02:26]} 24. a3 {[%emt 0:01:23]} Qa5 {[%emt 0:01:30]} 25. Bh3 {[%emt 0:01:08]} f5 {[%emt 0:00:25]} 26. Nxg6 {[%emt 0:00:53]} hxg6 {[%emt 0:00:13]} 27. Bxd6 {[%emt 0:00:09]} Rfe8 {[%emt 0:00:18]} 28. b4 {[%emt 0:01:03]} Qd8 {[%emt 0:00:22]} 29. Bc5 {[%emt 0:00:28]} Rc7 {[%emt 0:00:42]} 30. Re1 {[%emt 0:00:29]} Rf7 {[%emt 0:00:10]} 31. Rf1 {[%emt 0:02:07]} Qg5 {[%emt 0:00:15]} 32. Qf4 {[%emt 0:00:30]} Qh5 {[%emt 0:00:17]} 33. Bg2 {[%emt 0:00:25]} g5 {[%emt 0:00:07]} 34. Qd6 {[%emt 0:01:17]} e3 {[%emt 0:00:10]} 35. Bxd5 {[%emt 0:00:45]} e2 {[%emt 0:00:07]} 36. Bxf7+ {[%emt 0:00:17]} Qxf7 {[%emt 0:00:05]} 37. Rfe1 {[%emt 0:00:37]} f4 {[%emt 0:00:04]} 38. Qc6 {[%emt 0:00:50]} f3 {[%emt 0:00:22]} 39. Kf2 {[%emt 0:00:33]} Qh5 {[%emt 0:00:16]} 40. Qd5+ {[%emt 0:01:39]} Kh8 {[%emt 0:00:05]} 41. h4 {[%emt 0:00:15]} Qg6 {[%emt 0:00:13]} 42. Qxg5 {[%emt 0:00:25]} Qe4 {[%emt 0:00:06]} 43. Qh5+ {[%emt 0:01:03]} Kg8 {[%emt 0:00:01]} 44. Qxf3 {[%emt 0:00:40]} Bxd4+ {[%emt 0:00:26]} 45. Bxd4 {[%emt 0:00:32]} Rf8 {[%emt 0:00:03]} 46. Bf6 {[%emt 0:00:40]} Qg6 {[%emt 0:00:07]} 47. Kg2 {[%emt 0:00:15]} Rxf6 {[%emt 0:00:13]} 48. Qxe2 {[%emt 0:00:06]} Kh7 {[%emt 0:00:14]} 49. h5 {[%emt 0:11:54] Qg5Rad1 [%clk 0:11:32]} Rf7 {[%emt 0:00:11]} 50. Qe4 {[%emt 0:00:00]} Kh8 {[%emt 0:00:06] Rd5 [%clk 0:11:23] Qg7 [%clk 0:00:16] Rd8+ [%clk 0:11:26] Rf8 [%clk 0:00:24] Rxf8+ [%clk 0:11:28]} 1-0

[Event "ISR-chT U14 2018"]
[Site "Nir HaEmek"]
[Date "2018.08.13"]
[Round "3"]
[White "Niriev, Michael"]
[Black "Vagman, Roy"]
[Result "0-1"]
[ECO "C56"]
[WhiteElo "1619"]
[BlackElo "1952"]
[Annotator "NA RC"]
[PlyCount "24"]
[EventDate "2018.08.12"]
[EventType "team-tourn"]
[EventCountry "ISR"]
[SourceTitle "playchess.com"]
[Source "ChessBase"]
[SourceQuality "1"]
[TimeControl "3060+10"]

1. e4 {[%emt 0:00:52]} e5 {[%emt 0:01:12]} 2. Nf3 {[%emt 0:00:01]} Nc6 {[%emt 0:00:08]} 3. d4 {[%emt 0:00:02]} exd4 {[%emt 0:00:18]} 4. Bc4 {[%emt 0:00:02]} Nf6 {[%emt 0:00:32]} 5. Ng5 {[%emt 0:00:08]} d5 {[%emt 0:00:21]} 6. exd5 {[%emt 0:00:11]} Qe7+ {[%emt 0:00:10]} 7. Kd2 $2 (7. Kf1 $11 {and White is okay.} Ne5 8. Qxd4) 7... Qb4+ {[%emt 0:03:03]} 8. c3 {[%emt 0:19:30]} Qxc4 {[%emt 0:00:38]} 9. dxc6 $19 {[%emt 0:00:03]} dxc3+ {[%emt 0:00:37]} 10. Nxc3 {[%emt 0:00:20]} Bg4 {[%emt 0:05:37]} 11. Re1+ {[%emt 0:07:28]} Be7 {[%emt 0:00:37]} 12. Qb3 {[%emt 0:01:30]} Rd8+ {[%emt 0:00:36] 0:1} 0-1

[Event "ISR-chT U14 2018"]
[Site "Nir HaEmek"]
[Date "2018.08.13"]
[Round "3"]
[White "Shavit, Inbar"]
[Black "Katz, Kiril"]
[Result "0-1"]
[ECO "C17"]
[WhiteElo "1523"]
[BlackElo "1822"]
[Annotator "NA RC"]
[PlyCount "70"]
[EventDate "2018.08.12"]
[EventType "team-tourn"]
[EventCountry "ISR"]
[SourceTitle "playchess.com"]
[Source "ChessBase"]
[SourceQuality "1"]
[TimeControl "3060+10"]

1. e4 {[%emt 0:00:56]} e6 {[%emt 0:00:54]} 2. d4 {[%emt 0:00:03]} d5 {[%emt 0:00:05]} 3. Nc3 {[%emt 0:00:02]} Bb4 {[%emt 0:00:36]} 4. e5 {[%emt 0:00:06]} c5 {[%emt 0:00:07]} 5. Bd2 {[%emt 0:00:06]} a6 {[%emt 0:00:51]} 6. dxc5 {[%emt 0:04:04]} Bxc5 {[%emt 0:00:13]} 7. Qg4 {[%emt 0:07:39]} Kf8 {[%emt 0:03:29]} 8. Bd3 {[%emt 0:05:12]} Nc6 {[%emt 0:07:18]} 9. f4 {[%emt 0:10:12]} h5 {[%emt 0:06:35]} 10. Qe2 {[%emt 0:03:20]} Nd4 {[%emt 0:05:27]} 11. Qf1 {[%emt 0:01:31]} Bd7 {[%emt 0:03:21]} 12. Nf3 {[%emt 0:00:35]} Nxf3+ {[%emt 0:00:17]} 13. Qxf3 {[%emt 0:00:18]} Bc6 {[%emt 0:00:08]} 14. Qg3 {[%emt 0:01:50]} Nh6 {[%emt 0:04:50]} 15. h3 {[%emt 0:00:16]} h4 {[%emt 0:00:16]} 16. Qh2 $17 {[%emt 0:05:50]} (16. Qf3 $15) 16... Nf5 {[%emt 0:04:04]} 17. Bxf5 {[%emt 0:02:38]} exf5 {[%emt 0:00:01]} 18. Rf1 {[%emt 0:04:29]} Qb6 {[%emt 0:02:17]} 19. O-O-O {[%emt 0:00:50]} d4 {[%emt 0:00:04]} 20. Nb1 {[%emt 0:00:44]} Be4 {[%emt 0:01:02]} 21. g3 {[%emt 0:01:10]} Rc8 {[%emt 0:01:37]} 22. Be1 {[%emt 0:01:29]} Be7 {[%emt 0:01:46]} 23. Rf2 {[%emt 0:01:13]} hxg3 {[%emt 0:00:11]} 24. Qxg3 {[%emt 0:00:02]} Bh4 {[%emt 0:00:06]} 25. Qa3+ {[%emt 0:00:13]} Be7 {[%emt 0:02:05]} 26. Qb3 {[%emt 0:00:20]} Qc6 {[%emt 0:00:13]} 27. Rdd2 {[%emt 0:00:07]} Bc5 {[%emt 0:01:52]} 28. Rh2 {[%emt 0:00:11]} d3 {[%emt 0:00:11]} 29. c3 {[%emt 0:00:02]} Be3 {[%emt 0:00:15]} 30. Qa3+ {[%emt 0:00:32]} Kg8 {[%emt 0:00:13]} 31. Bg3 {[%emt 0:00:00]} Qb6 {[%emt 0:00:47]} 32. Rh1 {[%emt 0:00:08]} Bxh1 {[%emt 0:00:04]} 33. Be1 {[%emt 0:00:05]} Bxd2+ {[%emt 0:00:08]} 34. Nxd2 {[%emt 0:00:10]} Qe3 {[%emt 0:00:36]} 35. Kd1 {[%emt 0:00:06]} Qe2+ {[%emt 0:00:03]} 0-1

[Event "ISR-chT U14 2018"]
[Site "Nir HaEmek"]
[Date "2018.08.13"]
[Round "4"]
[White "Yaniv, Yuval"]
[Black "Ben Ari, Yannay"]
[Result "1-0"]
[ECO "A04"]
[WhiteElo "2199"]
[BlackElo "2022"]
[Annotator "NA"]
[PlyCount "139"]
[EventDate "2018.08.12"]
[EventType "team-tourn"]
[EventCountry "ISR"]
[SourceTitle "playchess.com"]
[Source "ChessBase"]
[SourceQuality "1"]
[TimeControl "3060+10"]

1. Nf3 {[%emt 0:00:54]} f5 {[%emt 0:02:10]} 2. d3 {[%emt 0:00:10]} Nf6 {[%emt 0:00:05]} 3. e4 {[%emt 0:00:06]} d6 {[%emt 0:00:18]} 4. Nc3 {[%emt 0:00:06]} g6 {[%emt 0:04:36]} 5. Bg5 {[%emt 0:04:30]} Bg7 {[%emt 0:00:34]} 6. Qd2 {[%emt 0:02:31]} h6 {[%emt 0:01:13]} 7. Bxf6 {[%emt 0:01:16]} Bxf6 {[%emt 0:00:02]} 8. d4 {[%emt 0:01:29]} Nc6 {[%emt 0:07:29]} 9. d5 {[%emt 0:08:34]} Ne5 {[%emt 0:00:26]} 10. Nd4 {[%emt 0:02:50]} fxe4 {[%emt 0:13:24]} 11. Nxe4 {[%emt 0:00:11]} Bg7 {[%emt 0:00:03]} 12. Bb5+ {[%emt 0:03:43]} c6 {[%emt 0:02:37]} 13. dxc6 {[%emt 0:01:32]} O-O {[%emt 0:02:27]} 14. Nc3 {[%emt 0:07:17]} bxc6 {[%emt 0:04:44]} 15. Nxc6 {[%emt 0:02:14]} Nxc6 {[%emt 0:00:25]} 16. Bxc6 {[%emt 0:00:01]} Rb8 {[%emt 0:00:06]} 17. Bd5+ {[%emt 0:00:21]} Kh7 {[%emt 0:01:20]} 18. Bb3 {[%emt 0:00:23]} Bb7 {[%emt 0:03:00]} 19. f3 {[%emt 0:03:32]} Be5 {[%emt 0:04:38]} 20. Qd3 {[%emt 0:01:36]} Qa5 {[%emt 0:00:11]} 21. O-O-O {[%emt 0:04:24]} Ba6 {[%emt 0:01:40]} 22. Qd5 {[%emt 0:01:03]} Bxc3 {[%emt 0:00:34]} 23. bxc3 {[%emt 0:00:01]} Qxc3 {[%emt 0:00:03]} 24. Qd4 {[%emt 0:01:49]} Rfc8 {[%emt 0:01:17]} 25. Rhe1 {[%emt 0:00:46]} Qxd4 {[%emt 0:01:06]} 26. Rxd4 {[%emt 0:00:05]} Rc7 {[%emt 0:00:01]} 27. Kd2 {[%emt 0:00:12]} Kg7 {[%emt 0:00:01]} 28. Rf4 {[%emt 0:02:17]} e5 {[%emt 0:00:08]} 29. Ra4 {[%emt 0:00:02]} Bb5 {[%emt 0:00:18]} 30. Ra5 {[%emt 0:00:16]} Rbb7 {[%emt 0:00:36]} 31. Re3 {[%emt 0:00:52]} Bc4 {[%emt 0:00:14]} 32. Rc3 {[%emt 0:00:06]} Bxb3 {[%emt 0:00:01]} 33. Rxc7+ {[%emt 0:00:02]} Rxc7 {[%emt 0:00:01]} 34. axb3 {[%emt 0:00:01]} Kf6 {[%emt 0:00:03]} 35. Ra6 {[%emt 0:00:14]} Ke7 {[%emt 0:00:30]} 36. c4 {[%emt 0:00:12]} Rd7 {[%emt 0:00:17]} 37. Kc3 {[%emt 0:00:08]} Kd8 {[%emt 0:00:01]} 38. c5 {[%emt 0:00:26]} dxc5 {[%emt 0:00:27]} 39. Rxg6 {[%emt 0:00:02]} h5 {[%emt 0:00:08]} 40. Rg5 {[%emt 0:00:08]} h4 {[%emt 0:00:06]} 41. Rxe5 {[%emt 0:00:17]} Rg7 {[%emt 0:00:07]} 42. Re2 {[%emt 0:00:15]} Kd7 {[%emt 0:00:16]} 43. Kc4 {[%emt 0:00:12]} Kd6 {[%emt 0:00:08]} 44. Ra2 {[%emt 0:00:09]} Kc6 {[%emt 0:00:14]} 45. Rc2 {[%emt 0:00:44]} Kd6 {[%emt 0:00:10]} 46. Rf2 {[%emt 0:00:16]} Rg8 {[%emt 0:00:12]} 47. f4 {[%emt 0:00:12]} Rg4 {[%emt 0:00:11]} 48. h3 {[%emt 0:00:15]} Rg6 {[%emt 0:00:10]} 49. f5 {[%emt 0:00:11]} Rf6 {[%emt 0:00:05]} 50. Rf4 {[%emt 0:00:02]} Kc6 {[%emt 0:00:14]} 51. Rxh4 {[%emt 0:00:10]} Rxf5 {[%emt 0:00:02]} 52. Rh6+ {[%emt 0:00:05]} Kc7 {[%emt 0:00:08]} 53. g4 {[%emt 0:00:05]} Rf3 {[%emt 0:00:16]} 54. g5 {[%emt 0:00:32]} Rg3 {[%emt 0:00:02]} 55. h4 {[%emt 0:00:02]} Kd7 {[%emt 0:00:09]} 56. Kxc5 {[%emt 0:00:15]} Rxb3 {[%emt 0:00:03]} 57. Rh7+ {[%emt 0:00:10]} Ke6 {[%emt 0:00:14]} 58. Rxa7 {[%emt 0:00:01]} Rh3 {[%emt 0:00:14]} 59. Rh7 {[%emt 0:00:02]} Kf5 {[%emt 0:00:14]} 60. Rh6 {[%emt 0:00:03]} Rc3+ {[%emt 0:00:09]} 61. Kd6 {[%emt 0:00:06]} Rd3+ {[%emt 0:00:06]} 62. Ke7 {[%emt 0:00:02]} Ra3 {[%emt 0:00:15]} 63. Rf6+ {[%emt 0:00:47]} Kg4 {[%emt 0:00:12]} 64. g6 {[%emt 0:00:11]} Ra7+ {[%emt 0:00:05]} 65. Kf8 {[%emt 0:00:05]} Ra8+ {[%emt 0:00:03]} 66. Kg7 {[%emt 0:00:02]} Kxh4 {[%emt 0:00:03]} 67. Rf5 {[%emt 0:00:23]} Kg4 {[%emt 0:00:10]} 68. Rb5 {[%emt 0:00:04]} Ra1 {[%emt 0:00:32]} 69. Kg8 {[%emt 0:00:05]} Ra8+ {[%emt 0:00:14]} 70. Kh7 {[%emt 0:00:35]} 1-0